bitfinex/quotes_BTCUSD_20240727
["timestamp","ask_amount","ask_price","bid_price","bid_amount"]
[1722100212828,0.00024,68894.0,68893.0,0.76656605]
[1722100213922,0.00024,68894.0,68893.0,0.47626105]
[1722100216084,0.00024,68894.0,68893.0,0.18595605]
[1722100216291,0.00024,68894.0,68893.0,0.47626105]
[1722100216493,0.00024,68894.0,68893.0,0.04080405]
[1722100216900,0.00024,68894.0,68893.0,0.18595605]
[1722100217630,0.00024,68894.0,68893.0,0.04080405]
[1722100218395,0.00024,68894.0,68893.0,0.18595605]
[1722100219421,0.00024,68894.0,68893.0,0.04080405]
[1722100219422,0.29019,68894.0,68893.0,0.04080405]
[1722100219621,0.14504,68894.0,68893.0,0.04080405]
[1722100220240,0.14504,68894.0,68893.0,0.18595605]
[1722100220455,0.14504,68894.0,68893.0,0.04080405]
[1722100220654,0.29019,68894.0,68893.0,0.04080405]
[1722100220885,0.14504,68894.0,68893.0,0.04080405]
[1722100221212,0.00024,68894.0,68893.0,0.47718505]
[1722100221434,0.00024,68894.0,68893.0,0.76749005]
[1722100223045,0.00024,68894.0,68893.0,0.47718505]
[1722100223266,0.00024,68894.0,68893.0,0.18688005]
[1722100223267,0.14504,68894.0,68893.0,0.18688005]
[1722100223747,0.14504,68894.0,68893.0,0.47718505]
[1722100223958,0.14504,68894.0,68893.0,0.04172805]
[1722100224154,0.14504,68894.0,68893.0,0.18688005]
[1722100224794,0.580491,68894.0,68893.0,0.04172805]
[1722100224994,0.30462506,68894.0,68893.0,0.04172805]
[1722100225194,0.30462506,68894.0,68893.0,0.028924]
[1722100225441,0.30462506,68894.0,68893.0,0.04192794]
[1722100226461,0.59492606,68894.0,68893.0,0.04192794]
[1722100226657,0.59492606,68894.0,68893.0,0.02792794]
[1722100226866,0.59492606,68894.0,68893.0,0.04192794]
[1722100227241,0.59201281,68894.0,68893.0,0.04192794]
[1722100227646,0.30171181,68894.0,68893.0,0.04192794]
[1722100228021,0.30171181,68894.0,68893.0,0.02792794]
[1722100228231,0.29019,68894.0,68893.0,0.01392794]
[1722100228433,0.29019,68894.0,68893.0,0.04192794]
[1722100228632,0.29019,68894.0,68893.0,0.02792794]
[1722100229184,0.30168321,68894.0,68893.0,0.02792794]
[1722100229355,0.30168321,68894.0,68893.0,0.04192794]
[1722100229932,0.59198421,68894.0,68893.0,0.04192794]
[1722100230727,0.15653321,68894.0,68893.0,0.04192794]
[1722100231036,0.29019,68894.0,68893.0,0.04192794]
[1722100231583,0.29019,68894.0,68893.0,0.04947421]
[1722100233938,0.14504,68894.0,68893.0,0.04947421]
[1722100238559,0.29019,68894.0,68893.0,0.04947421]
[1722100238748,0.88270828,68894.0,68893.0,0.04947421]
[1722100238945,1.50950462,68894.0,68893.0,0.028924]
[1722100239711,1.50950462,68894.0,68893.0,0.000924]
[1722100240081,1.50950462,68894.0,68893.0,0.005924]
[1722100240479,1.50950462,68894.0,68893.0,0.000924]
[1722100241338,1.551394,68894.0,68893.0,0.000924]
[1722100241499,1.61061768,68894.0,68893.0,0.000924]
[1722100241824,1.61561768,68894.0,68893.0,0.001924]
[1722100242007,1.61361768,68894.0,68893.0,0.000924]
[1722100242233,1.61961768,68894.0,68893.0,0.001924]
[1722100242624,1.61961768,68894.0,68893.0,0.000924]
[1722100242625,1.61661768,68894.0,68893.0,0.000924]
[1722100242825,1.90691868,68894.0,68893.0,0.000924]
[1722100242942,1.91791868,68894.0,68893.0,0.002924]
[1722100243144,1.61561768,68894.0,68893.0,0.001924]
[1722100243339,1.90091868,68894.0,68893.0,0.000924]
[1722100243750,1.90591868,68894.0,68893.0,0.001924]
[1722100244307,1.61561768,68894.0,68893.0,0.001924]
[1722100244727,1.62698481,68894.0,68893.0,0.002924]
[1722100244929,1.61398481,68894.0,68893.0,0.001924]
[1722100245215,1.62298481,68894.0,68893.0,0.001924]
[1722100245648,1.92028581,68894.0,68893.0,0.002924]
[1722100245836,1.62998481,68894.0,68893.0,0.002924]
[1722100246247,1.92028581,68894.0,68893.0,0.002924]
[1722100248123,1.92076132,68894.0,68893.0,0.002924]
[1722100248478,1.87456204,68894.0,68893.0,0.002924]
[1722100248709,2.02646143,68894.0,68893.0,0.002924]
[1722100249312,2.31676243,68894.0,68893.0,0.002924]
[1722100249864,2.02646143,68894.0,68893.0,0.002924]
[1722100250064,2.0271089,68894.0,68893.0,0.002924]
[1722100250200,2.08774918,68894.0,68893.0,0.002924]
[1722100250597,1.596743,68890.0,68889.0,0.000924]
[1722100250804,1.9846569,68890.0,68889.0,0.000924]
[1722100251102,2.2749739,68890.0,68889.0,0.000924]
[1722100251312,2.27503655,68890.0,68889.0,0.000924]
[1722100251865,2.29103655,68890.0,68889.0,0.001924]
[1722100253370,1.62770255,68890.0,68889.0,0.001924]
[1722100253581,1.10764229,68890.0,68889.0,0.001924]
[1722100253757,1.10764229,68890.0,68889.0,0.085024]
[1722100253758,0.75402529,68890.0,68889.0,0.085024]
[1722100254090,0.016,68890.0,68889.0,0.085024]
[1722100254296,0.016,68890.0,68889.0,0.16544046]
[1722100254506,0.011,68890.0,68889.0,0.16544046]
[1722100254695,0.00024,68894.0,68890.0,0.0015542]
[1722100254696,0.14539,68894.0,68890.0,0.0015542]
[1722100254896,0.145156,68891.0,68890.0,0.0005542]
[1722100255094,0.435469,68891.0,68890.0,0.0005542]
[1722100255521,0.725782,68891.0,68890.0,0.0005542]
[1722100255740,0.435475,68890.0,68889.0,0.158124]
[1722100255985,0.435475,68890.0,68889.0,0.155124]
[1722100256157,0.435475,68890.0,68889.0,0.147124]
[1722100256590,0.725792,68890.0,68889.0,0.147124]
[1722100256789,0.725792,68890.0,68889.0,0.084024]
[1722100257868,0.726792,68890.0,68889.0,0.098024]
[1722100258042,0.726792,68890.0,68889.0,0.014924]
[1722100258660,0.727792,68890.0,68889.0,0.028924]
[1722100258980,1.018109,68890.0,68889.0,0.028924]
[1722100259597,1.308426,68890.0,68889.0,0.028924]
[1722100259814,1.46905325,68890.0,68889.0,0.028924]
[1722100260417,1.46836989,68890.0,68889.0,0.028924]
[1722100260697,1.46736989,68890.0,68889.0,0.014924]
[1722100260892,1.46836989,68890.0,68889.0,0.021924]
[1722100261331,1.46736989,68890.0,68889.0,0.000924]
[1722100261754,1.61594888,68890.0,68889.0,0.011924]
[1722100261949,1.46836989,68890.0,68889.0,0.011924]
[1722100262156,1.46836989,68890.0,68889.0,0.007924]
[1722100262542,1.46936989,68890.0,68889.0,0.018924]
[1722100263000,1.60618557,68890.0,68889.0,0.018924]
[1722100263213,1.46879641,68890.0,68889.0,0.018924]
[1722100263440,1.49157396,68890.0,68889.0,0.018924]
[1722100263664,2.13583847,68890.0,68889.0,0.018924]
[1722100263871,2.13583858,68890.0,68889.0,0.018924]
[1722100264038,2.15883858,68890.0,68889.0,0.018924]
[1722100264476,2.2843206,68890.0,68889.0,0.011924]
[1722100264693,1.30662,68880.0,68879.0,0.000924]
[1722100264867,2.08542782,68880.0,68879.0,0.000924]
[1722100265096,2.18542782,68880.0,68879.0,0.000924]
[1722100265665,2.35868739,68880.0,68879.0,0.000924]
[1722100266073,2.35157353,68880.0,68879.0,0.001924]
[1722100266275,2.36419998,68880.0,68879.0,0.001924]
[1722100267047,2.19104596,68880.0,68879.0,0.001924]
[1722100267254,2.14881062,68880.0,68879.0,0.001924]
[1722100269224,2.08928,68880.0,68879.0,0.001924]
[1722100269420,2.14946728,68880.0,68879.0,0.001924]
[1722100269895,2.14946163,68880.0,68879.0,0.001924]
[1722100270101,2.2997212,68880.0,68879.0,0.001924]
[1722100271835,2.30835766,68880.0,68879.0,0.001924]
[1722100272511,2.30881418,68880.0,68879.0,0.001924]
[1722100275918,2.30772146,68880.0,68879.0,0.001924]
[1722100276673,2.30772146,68880.0,68879.0,1e-06]
[1722100276897,2.59808146,68880.0,68879.0,1e-06]
[1722100278083,2.60060812,68880.0,68879.0,1e-06]
[1722100279086,2.61579624,68880.0,68879.0,1e-06]
[1722100279387,2.61579624,68880.0,68870.0,0.000924]
[1722100279388,1.738061,68872.0,68870.0,0.000924]
[1722100279520,2.12740643,68872.0,68870.0,0.000924]
[1722100281320,2.0805097,68872.0,68870.0,0.000924]
[1722100281741,2.0905097,68872.0,68870.0,0.000924]
[1722100282341,2.09743063,68872.0,68870.0,0.000924]
[1722100282586,2.16012677,68872.0,68870.0,0.000924]
[1722100284153,2.15312677,68872.0,68870.0,0.000924]
[1722100284352,2.14312677,68872.0,68870.0,0.000924]
[1722100284555,2.15312677,68872.0,68870.0,0.000924]
[1722100284781,2.16712677,68872.0,68870.0,0.000924]
[1722100285584,2.21377978,68872.0,68870.0,0.000924]
[1722100285780,2.16712677,68872.0,68870.0,0.000924]
[1722100286006,2.22264088,68872.0,68870.0,0.000924]
[1722100286285,2.22264051,68872.0,68870.0,0.000924]
[1722100286446,2.17593242,68872.0,68870.0,0.000924]
[1722100286646,2.22264037,68872.0,68870.0,0.000924]
[1722100287211,2.22284115,68872.0,68870.0,0.000924]
[1722100288852,2.22434976,68872.0,68870.0,0.000924]
[1722100292207,2.16336279,68872.0,68870.0,0.000924]
[1722100292539,2.2239333,68872.0,68870.0,0.000924]
[1722100294375,2.2239333,68872.0,68871.0,0.143624]
[1722100294376,0.81935816,68872.0,68871.0,0.143624]
[1722100294606,0.81055251,68872.0,68871.0,0.143624]
[1722100294771,0.76316322,68872.0,68871.0,0.143624]
[1722100295292,0.75316322,68872.0,68871.0,0.143624]
[1722100295516,1.0430492,68872.0,68871.0,0.143624]
[1722100295715,0.7526562,68872.0,68871.0,0.143624]
[1722100296460,1.0430492,68872.0,68871.0,0.143624]
[1722100296740,1.0290492,68872.0,68871.0,0.143624]
[1722100296915,0.7416562,68872.0,68871.0,0.143624]
[1722100297120,0.74133909,68872.0,68871.0,0.143624]
[1722100297858,1.03173209,68872.0,68871.0,0.143624]
[1722100298639,1.03155084,68872.0,68871.0,0.143624]
[1722100299623,1.02855084,68872.0,68871.0,0.143624]
[1722100299959,1.02955084,68872.0,68871.0,0.143624]
[1722100300821,1.03055084,68872.0,68871.0,0.143624]
[1722100301470,0.74015784,68872.0,68871.0,0.143624]
[1722100302049,0.727982,68872.0,68871.0,0.143624]
[1722100302253,0.74020384,68872.0,68871.0,0.143624]
[1722100302843,1.03059684,68872.0,68871.0,0.143624]
[1722100303056,0.74020384,68872.0,68871.0,0.143624]
[1722100305381,0.74021241,68872.0,68871.0,0.143624]
[1722100308160,0.01423041,68872.0,68871.0,0.143624]
[1722100308358,0.44981941,68872.0,68871.0,0.16369503]
[1722100308566,0.437589,68872.0,68871.0,0.16369503]
[1722100308766,0.74038487,68872.0,68871.0,0.16369503]
[1722100309194,0.44999187,68872.0,68871.0,0.16369503]
[1722100310029,0.74038487,68872.0,68871.0,0.16369503]
[1722100310979,0.44999187,68872.0,68871.0,0.16369503]
[1722100311916,0.45016418,68872.0,68871.0,0.16369503]
[1722100312318,0.45016418,68872.0,68871.0,0.143624]
[1722100312741,0.45016418,68872.0,68871.0,0.16369503]
[1722100315125,0.437589,68872.0,68871.0,0.16369503]
[1722100315324,0.45016536,68872.0,68871.0,0.16369503]
[1722100316765,0.74055836,68872.0,68871.0,0.16369503]
[1722100316924,0.74055836,68872.0,68871.0,0.143624]
[1722100317328,0.74055836,68872.0,68871.0,0.16368867]
[1722100317941,0.45016536,68872.0,68871.0,0.16368867]
[1722100318151,0.01457636,68872.0,68871.0,0.16368867]
[1722100318374,0.002,68872.0,68871.0,0.16368867]
[1722100318580,0.45008399,68872.0,68871.0,0.16368867]
[1722100319646,0.01449499,68872.0,68871.0,0.16368867]
[1722100319777,0.45008399,68872.0,68871.0,0.16368867]
[1722100320593,0.437589,68872.0,68871.0,0.16368867]
[1722100320797,0.45024361,68872.0,68871.0,0.16368867]
[1722100321243,0.74063919,68872.0,68871.0,0.16368867]
[1722100322337,1.03103219,68872.0,68871.0,0.10088867]
[1722100322542,1.09213219,68872.0,68871.0,0.02098867]
[1722100322725,1.55251736,68872.0,68871.0,0.000924]
[1722100323108,1.75951736,68872.0,68871.0,0.000924]
[1722100323803,1.75851736,68872.0,68871.0,0.000924]
[1722100324106,1.700868,68872.0,68871.0,0.000924]
[1722100324253,1.76012566,68872.0,68871.0,0.000924]
[1722100324455,1.697868,68872.0,68871.0,0.000924]
[1722100324658,1.76016809,68872.0,68871.0,0.000924]
[1722100324913,1.91042766,68872.0,68871.0,0.000924]
[1722100325116,1.9332121,68872.0,68871.0,0.000924]
[1722100325750,1.78295253,68872.0,68871.0,0.000924]
[1722100327352,1.78310685,68872.0,68871.0,0.000924]
[1722100330824,1.78330214,68872.0,68871.0,0.000924]
[1722100332035,1.72365244,68872.0,68871.0,0.000924]
[1722100332221,1.78323609,68872.0,68871.0,0.000924]
[1722100332833,1.93349566,68872.0,68871.0,0.000924]
[1722100334140,1.93330686,68872.0,68871.0,0.000924]
[1722100335323,1.78304729,68872.0,68871.0,0.000924]
[1722100337365,1.78280161,68872.0,68871.0,0.000924]
[1722100340757,1.78280821,68872.0,68871.0,0.000924]
[1722100341791,1.78277269,68872.0,68871.0,0.000924]
[1722100344050,1.72365244,68872.0,68871.0,0.000924]
[1722100344262,1.7832576,68872.0,68871.0,0.000924]
[1722100344436,1.93351717,68872.0,68871.0,0.000924]
[1722100345139,1.80931717,68872.0,68871.0,0.000924]
[1722100347353,1.80931391,68872.0,68871.0,0.000924]
[1722100350398,1.20176134,68872.0,68871.0,0.000924]
[1722100350584,1.28456134,68872.0,68871.0,0.000924]
[1722100351227,1.28477847,68872.0,68871.0,0.000924]
[1722100352631,1.28472451,68872.0,68871.0,0.000924]
[1722100353050,1.22495944,68872.0,68871.0,0.000924]
[1722100353231,1.28472543,68872.0,68871.0,0.000924]
[1722100354035,1.28461605,68872.0,68871.0,0.000924]
[1722100360699,1.28550958,68872.0,68871.0,0.000924]
[1722100363453,0.99511658,68872.0,68871.0,0.000924]
[1722100363655,0.91231658,68872.0,68871.0,0.141924]
[1722100363863,0.17098044,68872.0,68871.0,0.141924]
[1722100364067,0.18414877,68872.0,68871.0,0.141924]
[1722100364274,0.18414877,68872.0,68871.0,0.16199984]
[1722100364275,0.03895277,68872.0,68871.0,0.16199984]
[1722100364545,0.03595277,68872.0,68871.0,0.16199984]
[1722100364879,0.03695277,68872.0,68871.0,0.15196192]
[1722100365191,0.18214877,68872.0,68871.0,0.15196192]
[1722100365387,0.18314877,68872.0,68871.0,0.15196192]
[1722100366009,0.03838149,68872.0,68871.0,0.15196192]
[1722100366265,0.18357749,68872.0,68871.0,0.15196192]
[1722100367190,0.1837337,68872.0,68871.0,0.15196192]
[1722100368281,0.7645197,68872.0,68871.0,0.15196192]
[1722100368488,0.4741267,68872.0,68871.0,0.141924]
[1722100368686,0.4741267,68872.0,68871.0,0.15195574]
[1722100368866,0.7645197,68872.0,68871.0,0.15195574]
[1722100369216,0.4741267,68872.0,68871.0,0.141924]
[1722100370395,0.47403656,68872.0,68871.0,0.141924]
[1722100371620,0.47403656,68872.0,68871.0,0.15195227]
[1722100371949,0.47403656,68872.0,68871.0,0.141924]
[1722100372299,0.76442956,68872.0,68871.0,0.141924]
[1722100372677,0.47403656,68872.0,68871.0,0.141924]
[1722100373685,0.47405997,68872.0,68871.0,0.141924]
[1722100375662,0.47405997,68872.0,68871.0,0.15195227]
[1722100376522,0.76445297,68872.0,68871.0,0.15195227]
[1722100376718,0.76445297,68872.0,68871.0,0.09015227]
[1722100376956,1.05400535,68872.0,68871.0,0.080124]
[1722100377144,1.17409589,68872.0,68871.0,0.000924]
[1722100377350,1.32059589,68872.0,68871.0,0.000924]
[1722100377547,1.34259589,68872.0,68871.0,0.000924]
[1722100377776,1.67905294,68872.0,68871.0,0.000924]
[1722100377890,1.68996957,68872.0,68871.0,0.000924]
[1722100378452,1.68896957,68872.0,68871.0,0.000924]
[1722100378665,1.68996957,68872.0,68871.0,0.000924]
[1722100379900,1.63005961,68872.0,68871.0,0.000924]
[1722100380106,1.78912613,68872.0,68871.0,0.000924]
[1722100380301,1.73005961,68872.0,68871.0,0.000924]
[1722100380502,1.78912978,68872.0,68871.0,0.000924]
[1722100380953,1.78810181,68872.0,68871.0,0.000924]
[1722100381155,2.07849481,68872.0,68871.0,0.000924]
[1722100381355,1.78910181,68872.0,68871.0,0.000924]
[1722100382257,1.73605961,68872.0,68871.0,0.000924]
[1722100382451,1.79503165,68872.0,68871.0,0.000924]
[1722100384969,1.67494111,68872.0,68871.0,0.000924]
[1722100385562,1.67497236,68872.0,68871.0,0.000924]
[1722100386898,1.67297236,68872.0,68871.0,0.000924]
[1722100387126,1.49747236,68872.0,68871.0,0.000924]
[1722100387412,1.59462889,68872.0,68871.0,0.000924]
[1722100387585,1.54765411,68872.0,68871.0,0.000924]
[1722100387985,1.54265411,68872.0,68871.0,0.000924]
[1722100388275,1.58072465,68872.0,68871.0,0.000924]
[1722100388506,1.53365411,68872.0,68871.0,0.000924]
[1722100388681,1.52926907,68872.0,68871.0,0.000924]
[1722100388887,1.54212904,68872.0,68871.0,0.000924]
[1722100389300,1.45932904,68872.0,68871.0,0.000924]
[1722100389643,1.54212904,68872.0,68871.0,0.000924]
[1722100389855,1.06001941,68872.0,68871.0,0.000924]
[1722100390062,1.06001941,68872.0,68871.0,0.141124]
[1722100390743,1.05201941,68872.0,68871.0,0.141124]
[1722100390958,1.05401941,68872.0,68871.0,0.141124]
[1722100391161,1.06001941,68872.0,68871.0,0.141124]
[1722100391372,1.14281941,68872.0,68871.0,0.078124]
[1722100391587,1.13481941,68872.0,68871.0,0.078124]
[1722100391792,1.12295944,68872.0,68871.0,0.078124]
[1722100392184,1.13646088,68872.0,68871.0,0.078124]
[1722100392389,1.13646088,68872.0,68871.0,0.000924]
[1722100392390,1.25098382,68872.0,68871.0,0.000924]
[1722100392594,1.44156945,68872.0,68871.0,0.000924]
[1722100392966,1.73196245,68872.0,68871.0,0.000924]
[1722100393867,1.73096245,68872.0,68871.0,0.000924]
[1722100394069,1.73196245,68872.0,68871.0,0.000924]
[1722100394275,1.73596245,68872.0,68871.0,0.000924]
[1722100394423,1.73196245,68872.0,68871.0,0.000924]
[1722100394656,1.73096245,68872.0,68871.0,0.000924]
[1722100394833,1.73596245,68872.0,68871.0,0.000924]
[1722100395035,1.73527952,68872.0,68871.0,0.000924]
[1722100395444,1.85827952,68872.0,68871.0,0.000924]
[1722100395843,2.14867252,68872.0,68871.0,0.000924]
[1722100396460,2.14467252,68872.0,68871.0,0.000924]
[1722100396822,2.14367252,68872.0,68871.0,0.000924]
[1722100397030,2.15367252,68872.0,68871.0,0.000924]
[1722100397242,2.15334958,68872.0,68871.0,0.000924]
[1722100397441,2.16334958,68872.0,68871.0,0.000924]
[1722100397820,2.17034958,68872.0,68871.0,0.000924]
[1722100398224,2.16233992,68872.0,68871.0,0.000924]
[1722100398636,2.16933992,68872.0,68871.0,0.000924]
[1722100398836,2.31959949,68872.0,68871.0,0.000924]
[1722100399678,2.31959949,68872.0,68858.0,0.0014782]
[1722100399679,1.966612,68859.0,68858.0,0.0014782]
[1722100399926,2.29730648,68859.0,68858.0,0.000924]
[1722100400126,2.42030648,68859.0,68858.0,0.000924]
[1722100400442,2.44309583,68859.0,68858.0,0.000924]
[1722100401457,2.45271706,68859.0,68858.0,0.000924]
[1722100401746,2.47045297,68859.0,68858.0,0.000924]
[1722100401950,2.47545297,68859.0,68858.0,0.000924]
[1722100403150,2.62571254,68859.0,68858.0,0.000924]
[1722100404553,2.55659683,68859.0,68858.0,0.000924]
[1722100404778,2.62567674,68859.0,68858.0,0.000924]
[1722100404907,2.55659683,68859.0,68858.0,0.000924]
[1722100405109,2.62591462,68859.0,68858.0,0.000924]
[1722100406553,2.62605852,68859.0,68858.0,0.000924]
[1722100407812,2.62597099,68859.0,68858.0,0.000924]
[1722100408461,2.47571142,68859.0,68858.0,0.000924]
[1722100410293,2.39701142,68859.0,68858.0,0.000924]
[1722100411101,2.39783973,68859.0,68858.0,0.000924]
[1722100413148,1.307245,68847.0,68846.0,0.062]
[1722100413311,1.32537098,68847.0,68846.0,0.062]
[1722100414313,1.32637098,68847.0,68846.0,0.062]
[1722100414467,1.32670888,68847.0,68846.0,0.062]
[1722100414928,1.307263,68846.0,68845.0,0.078]
[1722100415276,1.32572688,68846.0,68845.0,0.078]
[1722100416936,1.32672688,68846.0,68845.0,0.078]
[1722100417115,1.32772688,68846.0,68845.0,0.078]
[1722100419064,1.41052688,68846.0,68845.0,0.078]
[1722100420935,1.41025377,68846.0,68845.0,0.078]
[1722100422884,1.41896481,68846.0,68845.0,0.078]
[1722100424323,1.41917357,68846.0,68845.0,0.078]
[1722100424526,1.03715953,68846.0,68845.0,0.1389]
[1722100425128,1.0599596,68846.0,68845.0,0.1389]
[1722100425756,0.4789536,68846.0,68845.0,0.1389]
[1722100425968,0.4789536,68846.0,68845.0,0.366953]
[1722100425969,0.0431996,68846.0,68845.0,0.366953]
[1722100426184,0.02480007,68846.0,68845.0,0.95726103]
[1722100426391,0.02480007,68846.0,68845.0,0.98637103]
[1722100426595,0.02480007,68846.0,68845.0,1.27687803]
[1722100426809,0.02278935,68859.0,68849.0,0.0601]
[1722100426959,0.145232,68855.0,68854.0,0.0601]
[1722100427156,0.435697,68855.0,68854.0,0.1363]
[1722100427378,0.435697,68855.0,68854.0,0.14556601]
[1722100427379,0.726162,68855.0,68854.0,0.14556601]
[1722100427588,0.435697,68855.0,68854.0,0.14556601]
[1722100427793,0.145232,68855.0,68854.0,0.14556601]
[1722100428014,0.726162,68855.0,68854.0,0.14556601]
[1722100428237,1.017627,68855.0,68854.0,0.14556601]
[1722100428452,1.017627,68855.0,68854.0,0.1363]
[1722100428893,1.03635806,68855.0,68854.0,0.1443]
[1722100429482,1.03535806,68855.0,68854.0,0.1363]
[1722100429705,1.05815374,68855.0,68854.0,0.1463]
[1722100429938,1.017627,68855.0,68854.0,0.1463]
[1722100430189,1.018627,68855.0,68854.0,0.1523]
[1722100430415,1.018627,68855.0,68854.0,0.1423]
[1722100430416,1.017627,68855.0,68854.0,0.1423]
[1722100432092,1.018627,68855.0,68854.0,0.1503]
[1722100432237,1.017627,68855.0,68854.0,0.1423]
[1722100432682,1.018627,68855.0,68854.0,0.1503]
[1722100433284,1.04142312,68855.0,68854.0,0.1503]
[1722100433699,0.75095812,68855.0,68854.0,0.1503]
[1722100443291,0.728162,68855.0,68854.0,0.1503]
[1722100445853,0.728162,68855.0,68854.0,0.151224]
[1722100446058,0.728162,68855.0,68854.0,0.014924]
[1722100446252,1.018627,68855.0,68854.0,0.014924]
[1722100446760,1.06078082,68855.0,68854.0,0.014924]
[1722100447186,1.06078069,68855.0,68854.0,0.014924]
[1722100447594,1.03798388,68855.0,68854.0,0.014924]
[1722100449084,1.12078388,68855.0,68854.0,0.014924]
[1722100449434,1.101427,68855.0,68854.0,0.014924]
[1722100449785,1.12048298,68855.0,68854.0,0.014924]
[1722100449963,1.12048406,68855.0,68854.0,0.014924]
[1722100450887,1.14328094,68855.0,68854.0,0.014924]
[1722100451273,1.12422388,68855.0,68854.0,0.014924]
[1722100451450,1.14352458,68855.0,68854.0,0.014924]
[1722100452624,1.101427,68855.0,68854.0,0.014924]
[1722100452843,1.12066153,68855.0,68854.0,0.014924]
[1722100455810,1.14345856,68855.0,68854.0,0.014924]
[1722100456034,1.1433246,68855.0,68854.0,0.014924]
[1722100456686,1.12052757,68855.0,68854.0,0.014924]
[1722100459271,1.12104877,68855.0,68854.0,0.014924]
[1722100460336,0.74778377,68855.0,68854.0,0.095024]
[1722100462464,0.74951496,68855.0,68854.0,0.095024]
[1722100463121,1.03997996,68855.0,68854.0,0.095024]
[1722100463278,0.74951496,68855.0,68854.0,0.095024]
[1722100463680,0.77231198,68855.0,68854.0,0.095024]
[1722100463886,0.77231198,68855.0,68854.0,0.159724]
[1722100464318,0.77231198,68855.0,68854.0,0.16921411]
[1722100464319,0.48184698,68855.0,68854.0,0.16921411]
[1722100464531,0.48184698,68855.0,68854.0,0.159724]
[1722100464733,0.48184698,68855.0,68854.0,0.16921411]
[1722100464934,0.45904996,68855.0,68854.0,0.16921411]
[1722100465798,0.45883157,68855.0,68854.0,0.16921411]
[1722100466002,0.45883157,68855.0,68854.0,0.02441411]
[1722100466202,0.74929657,68855.0,68854.0,0.02441411]
[1722100466413,1.081799,68855.0,68854.0,0.02441411]
[1722100466624,1.081799,68855.0,68854.0,0.014924]
[1722100466625,1.03976157,68855.0,68854.0,0.014924]
[1722100467029,1.46862436,68855.0,68854.0,0.014924]
[1722100467229,1.53222436,68855.0,68854.0,0.014924]
[1722100467440,1.24175936,68855.0,68854.0,0.014924]
[1722100467864,1.24075936,68855.0,68854.0,0.006924]
[1722100468121,1.53022436,68855.0,68854.0,0.000924]
[1722100468289,1.55302269,68855.0,68854.0,0.000924]
[1722100468839,1.55302269,68855.0,68854.0,0.003924]
[1722100468840,1.26255769,68855.0,68854.0,0.003924]
[1722100469272,1.24275936,68855.0,68854.0,0.000924]
[1722100469587,1.24275936,68855.0,68854.0,0.001924]
[1722100470095,1.53322436,68855.0,68854.0,0.001924]
[1722100470506,1.16838395,68855.0,68854.0,0.001924]
[1722100470709,1.04938616,68855.0,68854.0,0.001924]
[1722100471511,1.10312585,68855.0,68854.0,0.001924]
[1722100471946,1.31871659,68855.0,68854.0,0.001924]
[1722100472150,1.3922866,68855.0,68854.0,0.001924]
[1722100472547,1.1018216,68855.0,68854.0,0.001924]
[1722100472753,1.2372227,68855.0,68854.0,0.001924]
[1722100473004,1.5276877,68855.0,68854.0,0.001924]
[1722100473608,1.55048644,68855.0,68854.0,0.001924]
[1722100474177,1.41508534,68855.0,68854.0,0.001924]
[1722100474426,1.49788534,68855.0,68854.0,0.001924]
[1722100475379,1.75955295,68855.0,68854.0,0.001924]
[1722100475798,2.05001795,68855.0,68854.0,0.001924]
[1722100476743,2.04701795,68855.0,68854.0,0.001924]
[1722100476961,2.19727752,68855.0,68854.0,0.001924]
[1722100477167,2.20227752,68855.0,68854.0,0.001924]
[1722100477831,2.20227752,68855.0,68854.0,0.000924]
[1722100478176,2.20427752,68855.0,68854.0,0.000924]
[1722100478373,2.05401795,68855.0,68854.0,0.000924]
[1722100478800,1.98278033,68855.0,68854.0,0.000924]
[1722100479000,2.05279304,68855.0,68854.0,0.000924]
[1722100481663,1.98278033,68855.0,68854.0,0.000924]
[1722100481864,2.03010172,68855.0,68854.0,0.000924]
[1722100482154,1.73963672,68855.0,68854.0,0.000924]
[1722100482897,1.57563672,68855.0,68854.0,0.000924]
[1722100483552,1.71663672,68855.0,68854.0,0.000924]
[1722100484985,1.66931595,68855.0,68854.0,0.000924]
[1722100485188,1.75352334,68855.0,68854.0,0.000924]
[1722100485414,1.73072398,68855.0,68854.0,0.000924]
[1722100488426,2.02134406,68855.0,68854.0,0.000924]
[1722100488631,1.75367874,68855.0,68854.0,0.000924]
[1722100489006,2.04414374,68855.0,68854.0,0.000924]
[1722100489306,2.02134406,68855.0,68854.0,0.000924]
[1722100491015,2.17160363,68855.0,68854.0,0.000924]
[1722100491564,2.02134406,68855.0,68854.0,0.000924]
[1722100492613,2.04414367,68855.0,68854.0,0.000924]
[1722100493643,2.02134406,68855.0,68854.0,0.000924]
[1722100495063,2.02164813,68855.0,68854.0,0.000924]
[1722100496786,2.04444807,68855.0,68854.0,0.000924]
[1722100497428,2.19470764,68855.0,68854.0,0.000924]
[1722100497945,2.18770764,68855.0,68854.0,0.000924]
[1722100498146,2.18770764,68855.0,68854.0,0.001924]
[1722100498147,2.1829077,68855.0,68854.0,0.001924]
[1722100498354,2.18116785,68855.0,68854.0,0.001924]
[1722100499192,0.0637,68845.0,68840.0,0.0807]
[1722100499399,0.0637,68845.0,68836.0,0.0807]
[1722100499400,0.435811,68837.0,68836.0,0.0807]
[1722100499609,0.82201136,68837.0,68836.0,0.0807]
[1722100499810,1.40309336,68837.0,68836.0,0.0807]
[1722100500014,1.40309336,68837.0,68835.0,0.000924]
[1722100500015,0.435817,68836.0,68835.0,0.000924]
[1722100500231,1.48401136,68836.0,68835.0,0.000924]
[1722100500437,1.84446933,68836.0,68835.0,0.000924]
[1722100500840,1.784697,68836.0,68835.0,0.000924]
[1722100501048,1.92517888,68836.0,68835.0,0.000924]
[1722100501256,1.92517888,68836.0,68835.0,0.003924]
[1722100501257,2.21572388,68836.0,68835.0,0.003924]
[1722100501463,2.38878947,68836.0,68835.0,0.003924]
[1722100501658,2.32920759,68836.0,68835.0,0.003924]
[1722100502021,2.34220759,68836.0,68835.0,0.003924]
[1722100502265,2.34220759,68836.0,68823.0,0.000924]
[1722100502476,1.742856,68825.0,68823.0,0.000924]
[1722100502606,1.91611557,68825.0,68823.0,0.000924]
[1722100502810,2.01611557,68825.0,68823.0,0.000924]
[1722100503008,2.28294831,68825.0,68823.0,0.000924]